Cogmind - Beta 14 @@@ ROGUE MODE // 2024.08.25 @ 16:30:13 Player: dwarfinator Result: System corrupted Performance ------------- Evolutions (4) 2000 Regions Visited (15) 3000 Robots Destroyed (219) 1095 Value Destroyed (7122) 7122 Prototype IDs (59) 1180 Alien Tech Used (0) 0 Bonus (903) 903 TOTAL SCORE: 15300 Bonus ------- High Alert Combat Kills 464 Follower Combat Kills 224 Aligned with FarCom 300 Met Data Miner 300 Friendly Fire -385 Cogmind --------- Core Integrity 0/850 Matter 300/300 Energy 141/150 System Corruption 103% Temperature Cool (0) Movement Walking (190) Ox1 Location -6/Factory Parts ------- > --- POWER (2) -------- Light Angular Momentum Engine > --- PROPULSION (6) --- Carbon-fiber Leg Carbon-fiber Leg Carbon-fiber Leg Carbon-fiber Leg Carbon-fiber Leg Carbon-fiber Leg > --- UTILITY (4) ------ Huge Storage Unit Transmission Jammer High-powered Tractor Beam > --- WEAPON (3) ------- Heavy Ion Cannon Guided EMP Blaster > --- INVENTORY (25) --- Energy Well (163) Energy Well (166) Advanced Transmission Jammer Improved Heavy Armor Plating Skeleton Box Trap Extractor (4/4 Dirty Bomb) Drone Bay (1/2) EM Pulse Cannon EM Pulse Cannon Heavy Plasma Cannon Advanced EMP Blaster Guided EMP Blaster Heavy Missile Launcher Improved Datajack Great Axe Peak State ------------ > --- POWER ------------ Improved Deuterium Engine Cooled Deuterium Engine > --- PROPULSION ------- Light Treads Armored Treads Armored Treads Medium Treads Armored Huge Wheel > --- UTILITY ---------- Huge Storage Unit Transmission Jammer Hardened Heavy Armor Plating > --- WEAPON ----------- Gauss Cannon Guided EMP Blaster > --- INVENTORY -------- Improved Deuterium Engine Improved Deuterium Engine Armored Huge Wheel Improved Cooling System Improved Cooling System Large Battery Compact Matter Pod Transmission Jammer Improved Medium Armor Plating Improved Heavy Armor Plating Medium Reactive Plating Authchip [R/NC] Skeleton Box High-powered Tractor Beam Trap Extractor EM Pulse Cannon Plasma Cannon Plasma Cannon Heavy Ion Cannon Mini Grenade Launcher Heavy Missile Launcher Improved Datajack Great Axe [Rating: 66] Favorites ----------- Power Improved Deuterium Engine Engine Improved Deuterium Engine Power Core Micro Nuclear Core Propulsion Light Treads Treads Light Treads Leg Aluminum Leg Wheel Armored Huge Wheel Flight Unit Improved Cesium-ion Thruster Utility Huge Storage Unit Device Improved Cooling System Storage Huge Storage Unit Processor Targeting Computer Hackware System Shield Protection Hardened Heavy Armor Plating Weapon Plasma Cannon Energy Gun Medium Laser Energy Cannon Plasma Cannon Ballistic Cannon Light Cannon Launcher Precision Grenade Launcher Special Weapon Mining Laser Impact Weapon Heavy Hammer Slashing Weapon Chainsword Special Melee Weapon Datajack Build | -11 -10 -10 -10 -9 -8 -7 -7 -7 -7 -7 -7 -6 -6 -6 -6 ------- Run | Yrd Mat Min Exi Min Mat Fac Was Fac Low Low Dat Pro Fac Was Fac Slots Evolved 8 | . . . . . 4 2 . . . . . . 2 . . Power 1 | . . . . . 1 . . . . . . . . . . Propulsion 4 | . . . . . 1 1 . . . . . . 2 . . Utility 2 | . . . . . 2 . . . . . . . . . . Weapon 1 | . . . . . . 1 . . . . . . . . . Parts Attached 359 | 7 20 3 3 6 88 47 4 87 19 3 4 7 35 9 17 Power 34 | 2 . . . . 12 8 . 7 1 . . . 3 . 1 Engine 25 | 2 . . . . 11 3 . 4 1 . . . 3 . 1 Core 9 | . . . . . 1 5 . 3 . . . . . . . Reactor . | . . . . . . . . . . . . . . . . Propulsion 59 | 2 . . . . 19 8 . 18 1 . . . 4 . 7 Treads 42 | 2 . . . . 18 8 . 9 1 . . . 3 . 1 Leg 7 | . . . . . . . . 1 . . . . . . 6 Wheel 8 | . . . . . 1 . . 6 . . . . 1 . . Hover . | . . . . . . . . . . . . . . . . Flight 2 | . . . . . . . . 2 . . . . . . . Utility 153 | 1 4 1 2 1 38 16 3 45 10 1 . 3 23 1 4 Device 105 | . . . 2 1 19 12 2 32 9 . . 3 21 1 3 Storage 9 | 1 3 1 . . 1 . . 3 . . . . . . . Processor 8 | . 1 . . . . 1 1 5 . . . . . . . Hackware 2 | . . . . . . . . 1 . . . . 1 . . Protection 29 | . . . . . 18 3 . 4 1 1 . . 1 . 1 Artifact . | . . . . . . . . . . . . . . . . Weapon 113 | 2 16 2 1 5 19 15 1 17 7 2 4 4 5 8 5 Energy Gun 5 | 2 2 . . . . . . . . . . 1 . . . Energy Cannon 53 | . 6 1 . 1 6 10 1 10 4 . 2 1 4 5 2 Ballistic Gun . | . . . . . . . . . . . . . . . . Ballistic Cannon 17 | . 1 . . 2 5 1 . 2 3 1 1 1 . . . Launcher 20 | . 3 . . 2 5 . . 1 . 1 . 1 1 3 3 Special Weapon 1 | . 1 . . . . . . . . . . . . . . Impact Weapon 7 | . 3 1 . . 1 . . 2 . . . . . . . Slashing Weapon 6 | . . . . . 1 3 . 2 . . . . . . . Piercing Weapon . | . . . . . . . . . . . . . . . . Special Melee Weapon 4 | . . . 1 . 1 1 . . . . 1 . . . . Unidentified Prototypes 5 | . . . . . 1 1 . 2 . . . . 1 . . Corrupted Parts 8 | . . . . . 1 . . . . . . . . . 7 System Corruption 54 | . . . . . 1 . . . . . . . . . 53 Parts Lost 41 | . . . . . 10 3 3 7 2 . . . 9 4 3 Power 9 | . . . . . 3 2 . 2 . . . . 1 . 1 Propulsion 15 | . . . . . 4 1 2 3 . . . . 3 1 1 Utility 8 | . . . . . 2 . 1 1 . . . . 3 1 . Weapon 9 | . . . . . 1 . . 1 2 . . . 2 2 1 Highest Loss Streak 5 | . . . . . 4 1 3 5 1 . . . 5 3 2 To Critical Strikes . | . . . . . . . . . . . . . . . . Average Slot Usage (%) 91 | . 94 100 93 100 99 99 70 83 83 84 68 84 84 46 45 Engine 12 | . 14 14 14 14 17 9 . 5 8 15 15 15 12 9 4 Core 2 | . . . . . . 4 10 7 5 . . . . . . Treads 22 | . 28 28 28 28 26 30 21 11 14 15 15 15 25 7 1 Wheel 3 | . . . . . . . . 9 7 7 7 7 6 2 . Device 8 | . . . . 14 14 10 9 7 6 7 7 7 5 5 9 Storage 9 | . 14 14 14 14 9 7 5 6 7 7 7 7 6 6 6 Processor 3 | . 9 14 8 . . 4 5 4 . . . . . . . Protection 6 | . . . . . 12 6 . 5 7 7 7 7 6 3 1 Energy Cannon 11 | . 10 11 14 13 6 18 16 12 14 15 . 14 12 5 5 Ballistic Cannon 6 | . . 14 9 13 9 . . 3 7 7 . 7 5 . . Peak Build Rating 66 | 6 8 9 16 12 42 48 44 56 58 58 57 58 66 62 54 Average Rating 34 | 4 7 8 8 11 27 43 31 43 57 57 47 56 62 39 36 On Entrance 30 | . 6 8 9 10 12 42 44 1 54 58 57 57 57 56 22 Naked Turns 96 | . . . . . . . 59 37 . . . . . . . Heaviest Build 153 | 13 50 51 51 52 125 139 128 139 139 144 144 144 153 145 109 Greatest Support 82 | 40 40 40 40 40 62 82 82 40 28 28 28 28 28 28 75 Greatest Overweight (x) 39 | . 1 1 1 1 34 1 1 39 4 5 5 5 5 5 32 Average Overweight (x) 2 | . . . 1 1 . 1 . 2 4 4 4 4 4 3 4 Largest Inventory Capacity 25 | 8 20 20 20 20 25 25 25 25 25 25 25 25 25 25 25 Average Capacity 22 | 6 14 19 20 20 23 25 19 23 25 25 25 25 25 25 25 Most Carried 25 | 2 15 20 20 20 25 25 25 25 25 25 25 25 25 22 21 Average Carried 21 | 1 8 19 17 19 22 24 18 21 24 24 24 25 24 20 17 Final Capacity 25 | 8 15 20 20 20 25 25 5 25 25 25 25 25 25 25 25 Final Carried 25 | 2 15 20 20 20 23 25 5 25 23 25 25 25 20 22 17 Class Distribution -------------------- 31% | Mutant 27% | Scavenger-Mutant 17% | Skirmisher 15% | Tank 3% | Scavenger-Tank Dominant Class ---------------- Mutant | -10/Materials Mutant | -10/Mines Mutant | -10/Exiles Skirmisher | -9/Mines Scavenger-Mutant | -8/Materials Scavenger-Mutant | -7/Factory Scavenger-Skirmisher | -7/Waste Scavenger-Mutant | -7/Factory Tank | -7/Lower Caves Tank | -7/Lower Caves Mutant | -7/Data Miner Tank | -6/Proximity Caves Skirmisher | -6/Factory Mutant | -6/Waste Skirmisher | -6/Factory Resources | -11 -10 -10 -10 -9 -8 -7 -7 -7 -7 -7 -7 -6 -6 -6 -6 ----------- Run | Yrd Mat Min Exi Min Mat Fac Was Fac Low Low Dat Pro Fac Was Fac Matter Collected 7460 | 250 250 219 . 72 1645 618 49 1714 701 152 . 178 475 790 347 Remotely 1198 | . . . . . . . . 296 . . . . . 608 294 Salvage Created 9701 | . 344 119 . 44 2235 1042 364 1637 774 334 . 78 858 1285 587 Parts 408 | . 27 6 . 17 135 49 7 79 23 12 . 11 21 . 21 Haulers Intercepted 10 | . 1 . . . 5 1 . 3 . . . . . . . Recyclers Shooed 3 | . . . . . . . . 2 . . . . . . 1 Parts Field Recycled . | . . . . . . . . . . . . . . . . Retrieved Matter . | . . . . . . . . . . . . . . . . Parts Self-Destructed 57 | . . . . . . . . . 30 16 . 11 . . . Prevented 2 | . . . . . . . . . 2 . . . . . . Kills | -11 -10 -10 -10 -9 -8 -7 -7 -7 -7 -7 -7 -6 -6 -6 -6 ------- Run | Yrd Mat Min Exi Min Mat Fac Was Fac Low Low Dat Pro Fac Was Fac Combat Hostiles Destroyed 162 | . 16 2 . 7 50 15 2 16 12 6 . 5 11 6 14 Melee 1 | . . . . . . . . 1 . . . . . . . Cannons 114 | . 4 2 . 1 43 13 2 15 11 6 . 5 10 1 1 AOE 38 | . 10 . . 6 7 . . . . . . . . 5 10 Classes Destroyed 20 | . 3 1 . 1 8 1 1 2 2 . . 1 . . . Worker 11 | . . . . . 2 1 . 7 . . . . . . 1 Builder 5 | . . . . 1 2 1 . . . . . . . . 1 Tunneler 1 | . . . . . . . . 1 . . . . . . . Hauler 10 | . 1 . . . 5 1 . 3 . . . . . . . Recycler 13 | . . . . . 4 1 . 6 . . . . 2 . . Minesweeper 1 | . . . . . . . . . 1 . . . . . . Mechanic 1 | . . . . . . . . 1 . . . . . . . Operator 2 | . . 1 . . . . 1 . . . . . . . . Drone 2 | . . . . . . . . . . . . 2 . . . Watcher 12 | . . . . . 5 3 . 4 . . . . . . . Swarmer 40 | . 9 . . 7 14 . . . . 3 . 3 . . 4 Grunt 67 | . 7 2 . . 20 10 1 5 6 1 . . 6 . 9 Brawler 4 | . . . . . . . . . 3 . . . . . 1 Duelist 4 | . . . . . 3 . . . . 1 . . . . . Sentry 16 | . . . . . 9 1 . 3 2 1 . . . . . Specialist 5 | . . . . . 2 . . . . . . . 3 . . Hunter 6 | . . . . . 1 2 . 2 1 . . . . . . Programmer 11 | . . . . . . 2 . 6 1 . . . 2 . . Heavy 1 | . . . . . 1 . . . . . . . . . . Compactor 7 | . . . . . . . 1 . . . . . . 6 . Best Kill Streak 14 | . 3 2 . 5 6 4 1 4 6 2 . 3 3 3 14 Combat Bots Only 13 | . 3 2 . 4 5 4 1 2 6 2 . 3 3 3 13 Max Kills in Single Turn 4 | . 3 1 . 4 4 1 2 2 1 1 . 2 1 1 4 Gunslinging . | . . . . . . . . . . . . . . . . Exploded 3 | . 3 . . 3 2 . . . . . . . . 1 3 Melee 1 | . . . . . . . . 1 . . . . . . . Uniques/NPCs Destroyed . | . . . . . . . . . . . . . . . . Combat | -11 -10 -10 -10 -9 -8 -7 -7 -7 -7 -7 -7 -6 -6 -6 -6 -------- Run | Yrd Mat Min Exi Min Mat Fac Was Fac Low Low Dat Pro Fac Was Fac Hostile Shots Fired 1034 | . 33 5 . 2 230 110 5 222 104 116 . 16 151 7 33 Missed 295 | . 15 3 . 1 50 45 3 62 24 47 . 6 32 . 7 Damage Taken 11123 | . 282 28 . 6 2349 710 101 1828 1362 752 . 125 2558 513 509 Core 915 | . 33 . . . 221 46 . 121 175 73 . 13 137 46 50 Absorbed by Shields 1154 | . . . . . 759 137 . 216 . . . . 42 . . Ignored by Resistances 87 | . . . . . . 67 . 20 . . . . . . . Regen/Repaired (Parts) 1680 | . 93 . . . . 308 . 459 . . . . 820 . . Core Remaining (%) 70 | 100 . . . 86 59 . . . . . . 38 . . . Volleys Fired 620 | . 35 4 . 7 164 41 12 133 53 20 . 6 82 33 30 Largest 3 | . 2 2 . 2 2 3 3 3 3 3 . 3 3 3 2 Hottest 260 | . 95 95 . 95 123 188 188 208 208 208 . 208 228 260 128 Shots Fired 1139 | . 36 8 . 8 317 119 35 197 118 45 . 22 142 61 31 Gun . | . . . . . . . . . . . . . . . . Cannon 1068 | . 31 8 . 4 313 119 35 197 118 45 . 22 142 18 16 Launcher 71 | . 5 . . 4 4 . . . . . . . . 43 15 Special . | . . . . . . . . . . . . . . . . Kinetic 275 | . 2 4 . 1 159 . . 27 37 12 . 9 24 . . Thermal 731 | . 29 4 . 3 134 117 35 136 81 33 . 13 118 18 10 Explosive 62 | . 5 . . 4 4 . . . . . . . . 43 6 Electromagnetic 71 | . . . . . 20 2 . 34 . . . . . . 15 Robot Hit Streak 17 | . 6 2 . 5 11 11 15 16 10 8 . 5 17 12 6 Robot Miss Streak 7 | . 4 2 . . 7 3 2 4 5 5 . 6 3 3 2 Penetration Max 1 | . . . . . . . . . . 1 . 1 . . . Secondary Targets . | . . . . . . . . . . . . . . . . Shots Hit Robots 696 | . 27 4 4 3 197 86 25 120 72 23 1 6 71 42 15 Core Hits 360 | . 15 4 . 8 134 34 7 50 24 11 . 5 25 13 30 Critical Kills 3 | . 1 . . . . 1 . . . . . . 1 . . Critical Parts Destroyed 1 | . 1 . . . . . . . . . . . . . . Critical Strikes 12 | . 2 . . . . 1 . 2 2 2 . . 3 . . Meltdown 3 | . 1 . . . . 1 . . . . . . 1 . . Blast 8 | . . . . . . . . 2 2 2 . . 2 . . Smash 1 | . 1 . . . . . . . . . . . . . . Melee Attacks 61 | . 10 2 4 . 5 18 . 21 . . 1 . . . . Impact 27 | . 10 2 . . 2 . . 13 . . . . . . . Slashing 28 | . . . . . 3 17 . 8 . . . . . . . Piercing . | . . . . . . . . . . . . . . . . Sneak Attacks 8 | . . . 4 . . 3 . . . . 1 . . . . Combat Hostiles . | . . . . . . . . . . . . . . . . Follow-up Attacks . | . . . . . . . . . . . . . . . . Damage Inflicted 24058 | . 896 99 . 472 4665 2211 651 3400 1991 631 . 193 2224 4637 1988 Guns . | . . . . . . . . . . . . . . . . Cannons 16224 | . 376 91 . 54 4113 2050 651 3196 1991 631 . 193 2221 421 236 Explosions 7288 | . 377 . . 392 490 . . 61 . . . . . 4216 1752 Melee 423 | . 143 . . . . 137 . 143 . . . . . . . Ramming 123 | . . 8 . 26 62 24 . . . . . . 3 . . Kinetic 4061 | . 20 19 . . 2037 . . 479 557 219 . 115 615 . . Thermal 11255 | . 356 72 . 54 1664 2007 651 2118 1434 412 . 78 1606 421 382 Explosive 6375 | . 377 . . 392 490 . . . . . . . . 4216 900 Electromagnetic 1821 | . . . . . 412 43 . 660 . . . . . . 706 Impact 286 | . 143 . . . . . . 143 . . . . . . . Slashing 137 | . . . . . . 137 . . . . . . . . . Piercing . | . . . . . . . . . . . . . . . . Highest Corruption 103 | . . . . . 2 4 13 20 20 19 19 19 22 50 103 Average Corruption 11 | . . . . . 1 2 7 18 19 19 19 19 3 37 60 Corruption Purged 6 | . . . . . . 3 . . 1 . . . 2 . . Corruption Blocked . | . . . . . . . . . . . . . . . . Effects 503 | . . . . . 31 25 5 192 86 58 11 39 14 29 13 Message Errors 112 | . . . . . 5 7 1 50 14 14 4 10 2 3 2 Matter Fused 131 | . . . . . 8 12 . 54 30 7 4 6 2 6 2 Heat Flow Errors 59 | . . . . . 5 2 . 15 12 13 1 7 1 2 1 Energy Discharges 54 | . . . . . 2 1 1 19 10 10 1 5 1 3 1 Parts Rejected 5 | . . . . . . 1 . . 2 . . . . 1 1 Parts Fused 4 | . . . . . . . . 4 . . . . . . . Data Loss (minor) 58 | . . . . . 6 2 . 28 9 5 1 4 . 2 1 Data Loss (major) 18 | . . . . . 1 . 1 5 4 3 . 1 1 2 . Misfires 18 | . . . . . 1 . . 5 1 4 . 5 2 . . Alerts 9 | . . . . . 2 . . 5 2 . . . . . . Misdirections 5 | . . . . . . . 1 2 . . . . 2 . . Weapon Failures 30 | . . . . . 1 . 1 5 2 2 . 1 3 10 5 Overload Shots . | . . . . . . . . . . . . . . . . Overflow Damage 539 | . 43 . . 6 57 83 . 163 48 4 . . 60 20 55 Projectiles 396 | . 10 . . . 47 50 . 163 48 4 . . 60 . 14 Explosions 82 | . 5 . . 6 10 . . . . . . . . 20 41 Melee 61 | . 28 . . . . 33 . . . . . . . . . Knockbacks 51 | . . . . . 34 1 . 3 1 . . 1 11 . . Impact 4 | . . . . . 1 1 . 2 . . . . . . . Kinetic 41 | . . . . . 28 . . 1 1 . . 1 10 . . Secondary 6 | . . . . . 5 . . . . . . . 1 . . Self-Inflicted Damage 334 | . . . . . 14 . . 39 . . . . 1 253 27 Shots 11 | . . . . . 1 . . 1 . . . . . 6 3 Rammed 16 | 1 . 1 . 3 6 4 . . . . . . 1 . . Targets Rammed 17 | 1 . 1 . 3 7 4 . . . . . . 1 . . Kicked . | . . . . . . . . . . . . . . . . Crushed 1 | . . . . . 1 . . . . . . . . . . Highest Temperature 391 | . 152 147 . 33 391 294 153 342 358 287 209 255 358 235 227 Average Temperature 101 | . 36 77 . 14 102 89 59 105 129 107 106 88 109 58 109 Received Heat Transfer 3155 | . 78 15 . . 794 231 . 693 447 24 . 12 618 . 243 Effects 16 | . . . . . 1 3 . 6 5 . . . 1 . . Shutdowns 1 | . . . . . . . . . 1 . . . . . . Energy Bleed 1 | . . . . . . . . . . . . . 1 . . Interference 13 | . . . . . . 3 . 6 4 . . . . . . Damage (minor) 1 | . . . . . 1 . . . . . . . . . . Siege Activations . | . . . . . . . . . . . . . . . . Robots Corrupted 4 | . 1 . . . . . . . . . . . . . 3 Combat Hostiles 4 | . 1 . . . . . . . . . . . . . 3 Parts Fried 7 | . . . . . . . . 5 . . . . . . 2 Impact Corruptions 1 | . 1 . . . . . . . . . . . . . . Robots Melted 5 | . 1 . . . . 2 . . 1 . . . 1 . . Combat Hostiles 5 | . 1 . . . . 2 . . 1 . . . 1 . . Parts Melted 27 | . 3 . . . 2 7 1 4 . 3 . . 7 . . Heat Transferred 19012 | . 740 148 . 111 2812 3071 1073 3900 2685 800 . 150 2500 674 348 Parts Sabotaged . | . . . . . . . . . . . . . . . . Parts Stolen . | . . . . . . . . . . . . . . . . Parts Stripped . | . . . . . . . . . . . . . . . . Power Chain Reactions 3 | . . . . . . . . 2 . . . . . . 1 Alert | -11 -10 -10 -10 -9 -8 -7 -7 -7 -7 -7 -7 -6 -6 -6 -6 ------- Run | Yrd Mat Min Exi Min Mat Fac Was Fac Low Low Dat Pro Fac Was Fac Peak Influence 1021 | . 308 170 . 114 1021 476 142 341 . . . . 394 159 595 Initial 459 | . . 118 . . . 459 122 78 . . . . 300 65 111 Average 269 | . 123 40 . 54 516 314 129 134 . . . . 207 123 413 Maximum Alert Level 3 | . 1 . . . 3 2 . 1 . . . . 1 . 2 Low Security (%) 55 | 100 67 100 . 100 34 3 100 75 . . . . 53 100 18 Level 1 26 | . 32 . . . 9 88 . 24 . . . . 46 . 27 Level 2 5 | . . . . . 12 8 . . . . . . . . 54 Level 3 13 | . . . . . 43 . . . . . . . . . . Level 4 . | . . . . . . . . . . . . . . . . Level 5 . | . . . . . . . . . . . . . . . . High Security . | . . . . . . . . . . . . . . . . Max Security . | . . . . . . . . . . . . . . . . Sterilizations 1 | . . . . . 1 . . . . . . . . . . Squads Dispatched 38 | . 3 . . . 6 7 . 11 . . . . 9 . 2 Investigation 13 | . 3 . . . 3 2 . 2 . . . . 3 . . Extermination 11 | . . . . . . 2 . 6 . . . . 3 . . Reinforcement 13 | . . . . . 3 2 . 3 . . . . 3 . 2 Assault 1 | . . . . . . 1 . . . . . . . . . Garrison . | . . . . . . . . . . . . . . . . Intercept . | . . . . . . . . . . . . . . . . Searches Triggered . | . . . . . . . . . . . . . . . . Construction Impeded 1 | . . . . . . . . . . . . . . . 1 Haulers Reinforced 2 | . . . . . . . . 1 . . . . . . 1 Active Scanning Responses . | . . . . . . . . . . . . . . . . Cargo Convoy Interrupts . | . . . . . . . . . . . . . . . . Stealth | -11 -10 -10 -10 -9 -8 -7 -7 -7 -7 -7 -7 -6 -6 -6 -6 --------- Run | Yrd Mat Min Exi Min Mat Fac Was Fac Low Low Dat Pro Fac Was Fac Distress Signals 9 | . . . . 1 3 1 . 1 . . . . 2 . 1 Communications Jammed 30 | . . . . . . . . 25 . . . . 5 . . Distress Signals 29 | . . . . . . . . 24 . . . . 5 . . Times Spotted 239 | . 27 3 . 2 64 26 6 36 19 10 . 6 25 6 9 Peak Tracking Total 12 | . 5 2 . 3 5 6 4 4 4 5 . 3 12 3 6 Tactical Retreats 20 | . 1 1 . . 5 3 . 2 . 1 . . 5 . 2 Traps | -11 -10 -10 -10 -9 -8 -7 -7 -7 -7 -7 -7 -6 -6 -6 -6 ------- Run | Yrd Mat Min Exi Min Mat Fac Was Fac Low Low Dat Pro Fac Was Fac Traps Triggered 13 | . 1 . . . 1 2 . 8 . . . . 1 . . Indirectly . | . . . . . . . . . . . . . . . . Trap Hack Attempts 3 | . . . . . 3 . . . . . . . . . . Triggered . | . . . . . . . . . . . . . . . . Disarmed 1 | . . . . . 1 . . . . . . . . . . Reprogrammed . | . . . . . . . . . . . . . . . . Reused . | . . . . . . . . . . . . . . . . Traps Extracted . | . . . . . . . . . . . . . . . . Installed 4 | . . . . . . . . . 4 . . . . . . Triggered . | . . . . . . . . . . . . . . . . Most Traps Carried 4 | . . . . . . . . . 4 4 4 4 4 4 4 Machines | -11 -10 -10 -10 -9 -8 -7 -7 -7 -7 -7 -7 -6 -6 -6 -6 ---------- Run | Yrd Mat Min Exi Min Mat Fac Was Fac Low Low Dat Pro Fac Was Fac Machines Disabled 15 | . 2 . . 4 3 . . 2 . . . . 1 . 3 Max in Single Turn 2 | . 1 . . 2 1 . . 1 . . . . 1 . 2 Garrison Access 2 | . . . . . . 2 . . . . . . . . . Machines Repaired . | . . . . . . . . . . . . . . . . Machines Dismantled . | . . . . . . . . . . . . . . . . Machines Sabotaged . | . . . . . . . . . . . . . . . . Overloaded Fab Kills . | . . . . . . . . . . . . . . . . Hacking | -11 -10 -10 -10 -9 -8 -7 -7 -7 -7 -7 -7 -6 -6 -6 -6 --------- Run | Yrd Mat Min Exi Min Mat Fac Was Fac Low Low Dat Pro Fac Was Fac Machines Accessed 83 | . 11 . 2 . 14 20 . 17 2 2 4 . 11 . . Terminals 44 | . 8 . . . 11 11 . 10 . 1 . . 3 . . Fabricators 7 | . . . . . . 1 . 2 . . . . 4 . . Repair Stations 7 | . 1 . . . . 4 . 1 . . . . 1 . . Recycling Units 7 | . 2 . . . 2 1 . 1 . . . . 1 . . Scanalyzers 5 | . . . . . 1 2 . 1 . . . . 1 . . Garrison Access 4 | . . . . . . 1 . 2 . . . . 1 . . Total Hacks 247 | . 40 . 2 . 41 46 . 48 2 2 32 . 34 . . Successful 150 | . 25 . 2 . 25 24 . 21 2 2 32 . 17 . . Failed 97 | . 15 . . . 16 22 . 27 . . . . 17 . . Catastrophic 12 | . 1 . . . 1 4 . 3 . . . . 3 . . Database Lockouts . | . . . . . . . . . . . . . . . . Manual 120 | . 31 . 1 . 27 25 . 21 . . . . 15 . . Terminals 122 | . 32 . . . 32 27 . 20 . 1 . . 10 . . Fabricators 20 | . . . . . . 2 . 6 . . . . 12 . . Repair Stations 27 | . 2 . . . . 9 . 11 . . . . 5 . . Recycling Units 16 | . 6 . . . 4 1 . 4 . . . . 1 . . Scanalyzers 15 | . . . . . 5 4 . 2 . . . . 4 . . Garrison Access 10 | . . . . . . 3 . 5 . . . . 2 . . Terminal Hacks 59 | . 7 . 2 . 10 3 . . 2 2 32 . 1 . . Record 14 | . . . 1 . . . . . 1 1 11 . . . . Part Schematic 14 | . 1 . . . . . . . . . 13 . . . . Robot Schematic 5 | . . . . . . . . . . . 5 . . . . Robot Analysis 10 | . 4 . . . 5 1 . . . . . . . . . Prototype ID Bank 5 | . 1 . . . 1 . . . . . 3 . . . . Open Door 2 | . . . . . . . . . 1 1 . . . . . Branch Access Points 1 | . . . . . . . . . . . . . 1 . . Terminal Index 1 | . . . . . . 1 . . . . . . . . . Alert Level 1 | . . . . . 1 . . . . . . . . . . Unreport Threat 1 | . . . . . . 1 . . . . . . . . . Locate Traps 2 | . 1 . . . 1 . . . . . . . . . . Dispatch Records 1 | . . . . . 1 . . . . . . . . . . Hauler Manifests 1 | . . . . . 1 . . . . . . . . . . Derelict Proto ID Bank 1 | . . . 1 . . . . . . . . . . . . Fabricator Hacks 5 | . . . . . . . . 1 . . . . 4 . . Network Status 1 | . . . . . . . . . . . . . 1 . . Load Schematic 3 | . . . . . . . . 1 . . . . 2 . . Build 1 | . . . . . . . . . . . . . 1 . . Repair Station Hacks 20 | . 2 . . . . 4 . 10 . . . . 4 . . Scan Component 10 | . 1 . . . . 2 . 5 . . . . 2 . . Repair 10 | . 1 . . . . 2 . 5 . . . . 2 . . Recycling Unit Hacks 7 | . 3 . . . 1 1 . 2 . . . . . . . Report Inventory 5 | . 2 . . . 1 1 . 1 . . . . . . . Retrieve Components 2 | . 1 . . . . . . 1 . . . . . . . Scanalyzer 14 | . . . . . 5 3 . 2 . . . . 4 . . Insert Component 7 | . . . . . 2 2 . 1 . . . . 2 . . Analyze 7 | . . . . . 3 1 . 1 . . . . 2 . . Garrison Access Hacks 1 | . . . . . . 1 . . . . . . . . . Seal Access 1 | . . . . . . 1 . . . . . . . . . Unauthorized Hacks 44 | . 13 . . . 9 12 . 6 . . . . 4 . . Terminals 36 | . 11 . . . 7 10 . 5 . . . . 3 . . Assimilate 5 | . 1 . . . . 3 . . . . . . 1 . . Botnet 7 | . 2 . . . 2 2 . . . . . . 1 . . Operators 1 | . 1 . . . . . . . . . . . . . . Skim 23 | . 7 . . . 5 5 . 5 . . . . 1 . . Fabricators 2 | . . . . . . 1 . . . . . . 1 . . Overload 1 | . . . . . . 1 . . . . . . . . . Recompile 1 | . . . . . . . . . . . . . 1 . . Repair Stations 2 | . . . . . . 1 . 1 . . . . . . . Mechanics 1 | . . . . . . . . 1 . . . . . . . Patch 1 | . . . . . . 1 . . . . . . . . . Recycling Units 4 | . 2 . . . 2 . . . . . . . . . . Tunnel 4 | . 2 . . . 2 . . . . . . . . . . Scanalyzers . | . . . . . . . . . . . . . . . . Garrison Access . | . . . . . . . . . . . . . . . . Data Cores Recovered . | . . . . . . . . . . . . . . . . Used . | . . . . . . . . . . . . . . . . Hacking Detections 63 | . 10 . . . 12 17 . 14 . . . . 10 . . Full Trace Events 4 | . . . . . . . . 2 . . . . 2 . . Feedback Events 1 | . . . . . . . . 1 . . . . . . . Corruption 1 | . . . . . . . . 1 . . . . . . . Feedback Blocked . | . . . . . . . . . . . . . . . . Robot Schematics Acquired 5 | . . . . . . . . . . . 5 . . . . Robots Built 1 | . . . . . . . . . . . . . 1 . . Authchips 1 | . . . . . . . . . . . . . 1 . . Time 134 | . . . . . . . . . . . . . 134 . . Total Robot Build Rating 4 | . . . . . . . . . . . . . 4 . . Part Schematics Acquired 20 | . 1 . . . 2 1 . 1 . . 13 . 2 . . Parts Built . | . . . . . . . . . . . . . . . . Authchips . | . . . . . . . . . . . . . . . . Time . | . . . . . . . . . . . . . . . . Total Part Build Rating . | . . . . . . . . . . . . . . . . Parts Repaired 10 | . 1 . . . . 2 . 5 . . . . 2 . . Time 305 | . 26 . . . . 57 . 178 . . . . 44 . . Parts Recycled . | . . . . . . . . . . . . . . . . Recycled Matter . | . . . . . . . . . . . . . . . . Retrieved Matter . | . . . . . . . . . . . . . . . . Retrieved Components 5 | . 3 . . . . . . 2 . . . . . . . Parts Scanalyzed 6 | . . . . . 2 1 . 1 . . . . 2 . . Part Schematics Acquired 6 | . . . . . 2 1 . 1 . . . . 2 . . Parts Damaged 1 | . . . . . . . . . . . . . 1 . . Bothacking | -11 -10 -10 -10 -9 -8 -7 -7 -7 -7 -7 -7 -6 -6 -6 -6 ------------ Run | Yrd Mat Min Exi Min Mat Fac Was Fac Low Low Dat Pro Fac Was Fac Used RIF Installer . | . . . . . . . . . . . . . . . . Robots Hacked 6 | . . . 4 . . 1 . . . . 1 . . . . Non-combat 4 | . . . 3 . . 1 . . . . . . . . . Combat 2 | . . . 1 . . . . . . . 1 . . . . Robot Hacks Applied 6 | . . . 4 . . 1 . . . . 1 . . . . parse_system 5 | . . . 4 . . . . . . . 1 . . . . find_chute 1 | . . . . . . 1 . . . . . . . . . Relay Couplers Released 5 | . . . . . . 2 . . . . . . 3 . . Machine Destruction 2 | . . . . . . 2 . . . . . . . . . Programmers 3 | . . . . . . . . . . . . . 3 . . Fabnet Peak Effective % . | . . . . . . . . . . . . . . . . Robots Rewired 2 | . . . . . . . . . 2 . . . . . . Allies Hacked . | . . . . . . . . . . . . . . . . Hacks Repelled . | . . . . . . . . . . . . . . . . Allies | -11 -10 -10 -10 -9 -8 -7 -7 -7 -7 -7 -7 -6 -6 -6 -6 -------- Run | Yrd Mat Min Exi Min Mat Fac Was Fac Low Low Dat Pro Fac Was Fac Total Allies 6 | . 1 . . . . 1 . . 2 . . . 2 . . Largest Group 2 | . 1 . . . . 1 1 . 2 . . . 1 . . Highest-Rated Group 52 | . 10 . . . . 10 10 . 52 . . . 40 . . Highest-Rated Ally 40 | . 10 . . . . 10 10 . 32 . . . 40 . . Total Orders 6 | . . . . . . 2 . . . . . . 2 . 2 STAY 1 | . . . . . . 1 . . . . . . . . . FOLLOW 1 | . . . . . . 1 . . . . . . . . . EXPLORE 3 | . . . . . . . . . . . . . 1 . 2 RETURN 1 | . . . . . . . . . . . . . 1 . . Ally Attacks 14 | . . . . . . . . . 14 . . . . . . Total Damage 449 | . . . . . . . . . 449 . . . . . . Kills 6 | . . . . . . . . . 6 . . . . . . Allies Corrupted . | . . . . . . . . . . . . . . . . Allies Melted . | . . . . . . . . . . . . . . . . Intel | -11 -10 -10 -10 -9 -8 -7 -7 -7 -7 -7 -7 -6 -6 -6 -6 ------- Run | Yrd Mat Min Exi Min Mat Fac Was Fac Low Low Dat Pro Fac Was Fac Robot Analysis Total 10 | . 4 . . . 5 1 . . . . . . . . . Derelict Logs Recovered 4 | . . . . 1 . . . . 1 1 . 1 . . . Drone Launches 4 | . . . . . . . . . . . . . 2 . 2 Drone Recoveries 3 | . . . . . . . . . . . . . 2 . 1 Exploration | -11 -10 -10 -10 -9 -8 -7 -7 -7 -7 -7 -7 -6 -6 -6 -6 ------------- Run | Yrd Mat Min Exi Min Mat Fac Was Fac Low Low Dat Pro Fac Was Fac Turns Passed 26658 | 100 1579 1779 1688 1392 6401 2688 202 4187 1932 1251 216 903 1821 354 165 Spaces Moved 11435 | 57 797 703 694 564 1711 950 151 2545 1052 737 130 498 749 83 14 Core 192 | 4 . . . . 1 . 111 75 . . . . . . 1 Treads 5553 | 53 797 703 694 564 1710 950 40 1 . . . . . 41 . Legs 13 | . . . . . . . . . . . . . . . 13 Wheels 5127 | . . . . . . . . 1919 1052 737 130 498 749 42 . Hover . | . . . . . . . . . . . . . . . . Flight 550 | . . . . . . . . 550 . . . . . . . Fastest Speed 35 | 50 160 160 240 240 160 236 50 35 160 160 160 160 160 160 190 Average Speed 186 | 152 160 239 240 240 236 238 99 126 160 160 160 173 174 279 359 Slowest Speed 2000 | 160 240 240 240 240 1750 242 238 2000 160 175 175 175 175 400 1650 Overloaded Moves . | . . . . . . . . . . . . . . . . Propulsion Burnouts . | . . . . . . . . . . . . . . . . Robots Hopped 3 | . . . . . . . . 3 . . . . . . . Cave-ins Triggered 2 | . . . . . . . . . . . . . 2 . . Exploration Rate (%) 67 | 5 98 99 89 96 99 26 80 54 97 90 74 63 26 75 4 Regions Visited 15 Branch Regions 7 Pre-discovered Areas 14 | . 3 1 1 . 5 1 . 2 . . 1 . . . . Known Exits Taken 6 | . . 1 . . 1 . . 1 1 1 . 1 . . . Unknown Exits Taken 5 | 1 1 . 1 1 . . . . . . 1 . . . . Scrap Searched 11 | . . 1 . 1 . . . . 5 2 . 2 . . . Spaces Dug 138 | . 29 2 . . 28 15 . 13 . . . . 42 . 9 Terrain Destroyed 545 | . 29 2 . 30 46 15 . 21 11 3 . 4 62 276 46 Melee 37 | . 2 2 . . 5 15 . 13 . . . . . . . Projectile 93 | . . . . . 9 . . 2 11 3 . 4 62 1 1 AOE 415 | . 27 . . 30 32 . . 6 . . . . . 275 45 Terrain Rammed . | . . . . . . . . . . . . . . . . Walls Destroyed . | . . . . . . . . . . . . . . . . Machines Disabled . | . . . . . . . . . . . . . . . . Actions | -11 -10 -10 -10 -9 -8 -7 -7 -7 -7 -7 -7 -6 -6 -6 -6 --------- Run | Yrd Mat Min Exi Min Mat Fac Was Fac Low Low Dat Pro Fac Was Fac Total 15607 | 66 1039 785 718 591 3730 1246 176 3276 1200 765 138 521 1133 131 92 Wait 2662 | . 164 64 5 6 1652 136 . 344 30 2 . 9 230 . 20 Move 11417 | 57 796 702 693 563 1710 950 150 2538 1051 736 129 497 749 82 14 Hop 3 | . . . . . . . . 3 . . . . . . . Pick Up 208 | 2 11 7 6 3 48 25 4 67 9 3 1 . 16 3 3 Fast Attach 84 | 6 4 . 1 . 15 8 . 22 6 . 2 2 8 2 8 Attach 70 | . 1 . 1 . 11 7 1 17 4 1 1 . 13 4 9 Detach 24 | . 2 . 1 . 2 . . 8 . . . . 3 3 5 Swap 205 | 1 15 3 1 6 62 32 3 48 9 2 1 5 14 3 . Drop 178 | . 1 2 6 3 51 25 6 45 12 1 3 2 17 1 3 Fire 620 | . 35 4 . 7 164 41 12 133 53 20 . 6 82 33 30 Melee 61 | . 10 2 4 . 5 18 . 21 . . 1 . . . . Ram 1 | . . . . . . . . . . . . . 1 . . Kick . | . . . . . . . . . . . . . . . . Crush 15 | . . 1 . 3 7 4 . . . . . . . . . Escape Stasis 30 | . . . . . . . . 30 . . . . . . . Rewire 22 | . . . . . . . . . 22 . . . . . . Trap 7 | . . . . . 3 . . . 4 . . . . . . Miscellaneous . | . . . . . . . . . . . . . . . . Route ------- -11/Scrapyard -10/Materials (discovered 5 exits: *Mat x3 / [*Min] / Sub) -10/Mines (discovered 4 exits: *Mat x2 / *Exi / *Sub) -10/Exiles (discovered 2 exits: [*Min x2]) -9/Mines (discovered 2 exits: *Mat x2) -8/Materials (discovered 3 exits: *Fac x3) -7/Factory (discovered 6 exits: *Fac x2 / *Sto x2 / *Low x2) -7/Waste -7/Factory (discovered 3 exits: *Fac / *Low x2) -7/Lower Caves -7/Lower Caves (discovered 2 exits: *Fac / *Dat) -7/Data Miner -6/Proximity Caves -6/Factory (discovered 6 exits: [*Fac x2] / *Low x2 / Ext x2) -6/Waste -6/Factory (discovered 1 exit: [*Fac]) History --------- Turn | Location | Event 7 | -11/Scrapyard | Discovered new exit (range 15) 101 | -11/Scrapyard | Entered Materials 309 | -10/Materials | Build established: Mutant 348 | -10/Materials | Discovered new exit (range 3) 939 | -10/Materials | Repaired Beam Cannon 1105 | -10/Materials | Discovered new exit (range 13) 1146 | -10/Materials | Loaded intel: 16 trap records 1153 | -10/Materials | Discovered new exit (range 15) 1184 | -10/Materials | Learned Storage terminal intel 1210 | -10/Materials | Learned 2 Mines zone layouts 1227 | -10/Materials | Learned location of Recycling (-7) 1233 | -10/Materials | Identified exit to Subcaves 1233 | -10/Materials | Identified exit to Materials 1680 | -10/Materials | Entered Mines 1680 | -10/Mines | Accompanied by 1 ally 1681 | -10/Mines | Identified exit to Exiles 1715 | -10/Mines | Assembled infested the area 1820 | -10/Mines | Learned location of Storage (-7) 1836 | -10/Mines | Met 8R-AWN 1852 | -10/Mines | Met a Derelict bent on vengeance 2791 | -10/Mines | Discovered exit to Materials (range 15) 2820 | -10/Mines | Discovered exit to Subcaves (range 13) 3459 | -10/Mines | Entered Exiles 3491 | -10/Exiles | Discovered new exit (range 15) 3517 | -10/Exiles | Welcomed by 8R-AWN 3558 | -10/Exiles | Met EX-HEX 3651 | -10/Exiles | Met EX-DEC 3666 | -10/Exiles | Learned location of Zion (-6) 3794 | -10/Exiles | Visited The Gauntlet 4160 | -10/Exiles | Discovered new exit (range 12) 4314 | -10/Exiles | Met EX-BIN 4350 | -10/Exiles | Aligned with FarCom system 4352 | -10/Exiles | Given EX-Vault access code 4408 | -10/Exiles | Opened EX-Vault 4423 | -10/Exiles | Found Supersonic Drone Bay 4427 | -10/Exiles | Found Skeleton Box 4478 | -10/Exiles | Warned to stay clear of 0b10 Research branches 4812 | -10/Exiles | Learned about 8R-AWN's background 5147 | -10/Exiles | Left Exiles lab with Skeleton Box 5147 | -10/Exiles | Entered Mines 5175 | -9/Mines | Discovered new exit (range 16) 5501 | -9/Mines | Discovered new exit (range 7) 5505 | -9/Mines | Build established: Skirmisher 6050 | -9/Mines | Received a Rocket Launcher from a helpful Derelict 6051 | -9/Mines | Learned 4 Materials zone layouts 6539 | -9/Mines | Entered Materials 6539 | -8/Materials | Evolved 4 slots: Power x1, Propulsion x1, Utility x2 6540 | -8/Materials | Identified exit to Factory 7288 | -8/Materials | Build established: Mutant 8216 | -8/Materials | Lost 4 parts (2p1n1u) 8785 | -8/Materials | Build established: Scavenger-Mutant 9044 | -8/Materials | Learned location of 1 exit from Lower Caves 9098 | -8/Materials | Learned location of Lower Caves (-7) 9111 | -8/Materials | Learned location of Extension (-6) 9113 | -8/Materials | Learned 8 Factory zone layouts 9115 | -8/Materials | Learned Factory garrison access intel 9120 | -8/Materials | Learned location of 2 exits from Factory 9135 | -8/Materials | Learned 4 Lower Caves zone layouts 9159 | -8/Materials | Learned location of 1 exit from Storage 9700 | -8/Materials | Discovered exit to Factory (range 16) 10481 | -8/Materials | Discovered exit to Factory (range 16) 11399 | -8/Materials | Sterilization system engaged 11399 | -8/Materials | Non-combat units ordered to evacuate 11499 | -8/Materials | Combat units ordered to evacuate 11699 | -8/Materials | Ambient heat levels rising (+10) 11849 | -8/Materials | Ambient heat levels rising (+10) 11999 | -8/Materials | Ambient heat levels rising (+10) 12149 | -8/Materials | Ambient heat levels rising (+10) 12299 | -8/Materials | Ambient heat levels rising (+10) 12449 | -8/Materials | Ambient heat levels rising (+10) 12599 | -8/Materials | Ambient heat levels rising (+10) 12749 | -8/Materials | Ambient heat levels rising (+10) 12899 | -8/Materials | Ambient heat levels rising (+10) 12940 | -8/Materials | Entered Factory 12940 | -7/Factory | Evolved 2 slots: Propulsion x1, Weapon x1 12941 | -7/Factory | Identified exit to Storage 12941 | -7/Factory | Identified exit to Lower Caves 12942 | -7/Factory | Identified exit to Factory 12944 | -7/Factory | Loaded intel: 3 garrison access locations 13156 | -7/Factory | Discovered exit to Storage (range 8) 13205 | -7/Factory | Noticed a derelict Sapper rigging charges 13265 | -7/Factory | Build established: Scavenger-Tank 14160 | -7/Factory | Repaired Ion Cannon? 14461 | -7/Factory | Repaired Arm. Treads 14480 | -7/Factory | Found Prototype Launcher 14585 | -7/Factory | Build established: Scavenger-Mutant 14815 | -7/Factory | Loaded intel: 6 repair station locations 14853 | -7/Factory | Discovered exit to Factory (range 3) 14896 | -7/Factory | Learned Hub_04(d) emergency access door positions 14968 | -7/Factory | Learned 2 Upper Caves zone layouts 15030 | -7/Factory | Learned location of 1 exit from Lower Caves 15082 | -7/Factory | Learned Extension terminal intel 15126 | -7/Factory | Learned 2 Upper Caves zone layouts 15178 | -7/Factory | Learned location of 1 exit from Lower Caves 15213 | -7/Factory | Identified Rocket Array 15628 | -7/Factory | Sucked down chute 15628 | -7/Factory | Entered Waste 15643 | -7/Waste | EMP discharged 15668 | -7/Waste | 1 allies followed down the chute 15735 | -7/Waste | Spotted C-40 Crusher 15741 | -7/Waste | Spotted C-40 Crusher 15742 | -7/Waste | Destroyed C-40 Crusher 15743 | -7/Waste | EMP discharged 15743 | -7/Waste | System corruption reached 10% 15747 | -7/Waste | Spotted C-40 Crusher 15768 | -7/Waste | Crushed by Compactor (1 part destroyed, 1 dropped) 15771 | -7/Waste | Crushed by Compactor (1 part destroyed, 2 dropped) 15771 | -7/Waste | Released all parts (7) 15790 | -7/Waste | Spotted C-40 Crusher 15799 | -7/Waste | Spotted C-40 Crusher 15802 | -7/Waste | Lost 3 parts (2n1u) 15805 | -7/Waste | Spotted C-40 Crusher 15825 | -7/Waste | Discovered new exit (range 12) 15830 | -7/Waste | Entered Factory 15843 | -7/Factory | Discovered exit to Lower Caves (range 12) 16080 | -7/Factory | Build established: Mutant 16696 | -7/Factory | Discovered exit to Lower Caves (range 4) 16869 | -7/Factory | Lost 5 parts (1p2n1u1w) 17155 | -7/Factory | Build established: Scavenger-Mutant 18485 | -7/Factory | Repaired EM Pulse Cannon? 18537 | -7/Factory | Repaired Arm. Treads? 18595 | -7/Factory | Repaired Plasma Cannon? 18641 | -7/Factory | Repaired Disposable Heat Sink 18680 | -7/Factory | Repaired Lgt. Treads 19125 | -7/Factory | Discovered exit to Factory (range 15) 19195 | -7/Factory | Build established: Skirmisher 19520 | -7/Factory | Build established: Mutant 19778 | -7/Factory | Loaded intel: 6 repair station locations 19912 | -7/Factory | Learned 2 Proximity Caves zone layouts 20002 | -7/Factory | Learned Extension terminal intel 20017 | -7/Factory | Entered Lower Caves 20018 | -7/Lower Caves | Identified exit to Lower Caves 20304 | -7/Lower Caves | Build established: Tank 20616 | -7/Lower Caves | Attracted the attention of an 0b10 outpost 21082 | -7/Lower Caves | Attracted the attention of an 0b10 checkpoint 21092 | -7/Lower Caves | Learned Factory terminal intel 21453 | -7/Lower Caves | Ambushed by research squad 21531 | -7/Lower Caves | Found DCF Scrap (13 items) 21949 | -7/Lower Caves | Entered another Lower Caves area 21950 | -7/Lower Caves | Identified exit to Data Miner 22514 | -7/Lower Caves | Attracted the attention of an 0b10 checkpoint 22529 | -7/Lower Caves | Core integrity fell below 50% 23135 | -7/Lower Caves | Spotted B-75 Beast 23200 | -7/Lower Caves | Entered Data Miner 23202 | -7/Data Miner | Discovered new exit (range 6) 23232 | -7/Data Miner | Met Data Miner 23279 | -7/Data Miner | Learned location of Section 7 (-2) 23279 | -7/Data Miner | Acquired the access code to Warlord's prototype stash 23308 | -7/Data Miner | Received God Mode back door access code from Data Miner 23416 | -7/Data Miner | Entered Proximity Caves 23419 | -6/Proximity Caves | Spotter reported a threat 23825 | -6/Proximity Caves | Spotter reported a threat 23965 | -6/Proximity Caves | Learned Factory terminal intel 24216 | -6/Proximity Caves | Discovered exit to Factory (range 8) 24280 | -6/Proximity Caves | Spotted B-75 Beast 24319 | -6/Proximity Caves | Entered Factory 24319 | -6/Factory | Evolved 2 slots: Propulsion x2 24320 | -6/Factory | Identified exit to Lower Caves 24321 | -6/Factory | Loaded intel: 28 terminal locations 24630 | -6/Factory | Build established: Skirmisher 24997 | -6/Factory | Fabricated I-36 Angel? 25161 | -6/Factory | Discovered exit to Lower Caves (range 9) 25415 | -6/Factory | Repaired Arm. Treads 25442 | -6/Factory | Repaired Imp. Heavy Armor Plating 25482 | -6/Factory | Identified exit to Extension 25585 | -6/Factory | Discovered new exit (range 5) 26041 | -6/Factory | Crushed by falling debris 26041 | -6/Factory | System corruption reached 10% 26047 | -6/Factory | Crushed by falling debris 26078 | -6/Factory | Lost 5 parts (1p2n1u1w) 26104 | -6/Factory | Discovered new exit (range 10) 26140 | -6/Factory | Sucked down chute 26140 | -6/Factory | Entered Waste 26155 | -6/Waste | EMP discharged 26155 | -6/Waste | System corruption reached 30% 26173 | -6/Waste | Spotted C-40 Crusher 26197 | -6/Waste | Crushed by Compactor (1 part destroyed, 1 dropped) 26200 | -6/Waste | Crushed by Compactor (1 part destroyed) 26203 | -6/Waste | Crushed by Compactor (0 parts destroyed, 2 dropped) 26212 | -6/Waste | Destroyed C-40 Crusher 26221 | -6/Waste | Spotted C-40 Crusher 26233 | -6/Waste | Spotted C-40 Crusher 26236 | -6/Waste | Destroyed C-40 Crusher 26240 | -6/Waste | Lost 3 parts (1n1u1w) 26240 | -6/Waste | Spotted C-40 Crusher 26247 | -6/Waste | Destroyed C-40 Crusher 26250 | -6/Waste | Destroyed C-40 Crusher 26255 | -6/Waste | EMP discharged 26271 | -6/Waste | Spotted C-40 Crusher 26286 | -6/Waste | Destroyed C-40 Crusher 26298 | -6/Waste | Spotted C-40 Crusher 26324 | -6/Waste | Crushed by Compactor (0 parts destroyed, 1 dropped) 26329 | -6/Waste | Destroyed C-40 Crusher 26355 | -6/Waste | EMP discharged 26454 | -6/Waste | Discovered new exit (range 11) 26455 | -6/Waste | EMP discharged 26494 | -6/Waste | Entered Factory 26495 | -6/Factory | Loaded intel: 27 terminal locations 26529 | -6/Factory | Discovered new exit (range 35) 26602 | -6/Factory | Destroyed 13 combat bots 26660 | -6/Factory | System corrupted Last Messages --------------- 26638_ Acquired Corrupted Energy Well. 26639_ K-01 Serf destroyed. 26640_ U-05 Engineer builds a Wall. 26641_ System corrupted: Hvy. Ion Cannon failed to cycle. 26642_ U-05 Engineer lays Concrete. 26644_ U-05 Engineer call for reinforcements jammed. 26649_ System corrupted: Matter fused (-8). 26650_ Acquired 8 matter. 26650_ U-05 Engineer call for reinforcements jammed. 26655_ K-01 Serf collects debris. 26655_ Acquired Corrupted Carbon-fiber Leg. 26655_ Integrated Corrupted Carbon-fiber Leg (+10). 26656_ Acquired 10 matter. 26659_ Acquired Corrupted Carbon-fiber Leg. 26659_ Integrated Corrupted Carbon-fiber Leg (+4). 26659_ Corrupted Carbon-fiber Leg temporarily disabled. 26659_ K-01 Serf collects debris. 26660_ Acquired 6 matter. 26660_ Acquired 4 matter. 26660_ Cogmind system terminally corrupted. Map ----- +----------------------------------------------------+ | ??????????????????????????????????????? | | ??????????????????????????????????????? | | ??????????????????????????????????????? | | ??????????????????????????????????????? | | ??????????????????????????????????????? | | ?????????????????????????????????? ?? | | ?????????????????????????????????? | | ????????????????????????????????? | | ????????????????????????????????? | | ??????????????????### ?????????? | | ???????????????### ### ####???? | | ???????????????# #??? | | ???????????????# ??? | | ??????????????? #?? | | ??????????????? ? | | ??????????????? | | ####+#########? # ??? | | # """T""" #?# #????? | | # """ """ ###+#####+#####[= #????? | | ? # % #????? | | ??"""" k # #????? | | ??"""" #[ #????? | | ??"""" / #????? | | ??"""" [# [ t #????? | | # " [/ ;% ###+## ##+####????? | | # "" [/ #@ # #?????????? | | # "" # ##### "" """ #?????????? | | ? # #???# " """ #?????????? | | # # #???# "F """ #?????????? | | ####/##/###### #???# "" #?????????? | | ???# ###### #???# """ #?????????? | | ???# # # #???# """ #?????????? | | ???# # # #???# ! """ #?????????? | | ???# # ""# #???# #?????????? | | ???# #= ""# #???#####+####?????????? | | ???# # T"#u#???????# #????????????? | | ???#% # ""# #???????# #????????????? | | ???# + ""#u######### #????????????? | | ???# # # ## ! # #????????????? | | ???# ###### ##= # #### #? | | ???# ## """ + / #? | | ???# ######### ## """ # #### #? | | ???# #???????# ##! """ # #????????????? | | ??? ???????# ## # #????????????? | | ?? ???????# ##+###### #????????????? | | ?# ] ??????# #????# #????????????? | | ?# ??????# #???? ????????????? | | ?# #?????# #???T" ????????????? | | ?## ##?????# ?? " ????????????? | | ??# #??????# ###? ????????????? | +----------------------------------------------------+ Best States ------------- Heat Dissipation 88 Coolant Potential 65 Energy Generation 29 Energy Capacity 500 Matter Stores 300 Matter Capacity 300 Sight Range 16 Terrain Scan Range 16 Terrain Scan Density 10 Jamming Range 12 EM Shielding 2 Corruption Block 8 Armor Coverage 600 Resistance: KI 30 Resistance: EM 15 Evasion (%) 63 Targeting Accuracy 8 Melee Accuracy 5 Core Analysis 6 Armor Integrity Analysis 30 Recoil Reduction 4 Defensive Hacking 10 Authchip Count 1 Trap Extractor Capacity 4 Item Schematics ----------------- Huge Storage Unit | -10/Materials | Hacked Plasma Cutter | -8/Materials | Scanalyzed Transport Network Coupler | -8/Materials | Scanalyzed Plasma Cannon | -7/Factory | Scanalyzed Lgt. Treads | -7/Factory | Scanalyzed Combat Drone Bay | -7/Data Miner | Free Lgt. Regenerative Plating | -7/Data Miner | Free Cld. Aerolev Unit | -7/Data Miner | Free Thermal Defense Suite | -7/Data Miner | Free Com. Ion Cannon | -7/Data Miner | Free Arm. Medium Treads | -7/Data Miner | Free Adv. Field Recycling Unit | -7/Data Miner | Free Adv. Plasma Cannon | -7/Data Miner | Free Gravmag Array | -7/Data Miner | Free Enh. Gauss Cannon | -7/Data Miner | Free Lrn. Terrain Scanner | -7/Data Miner | Free Imp. Linear Gravjet | -7/Data Miner | Free Recoil Nullifier | -7/Data Miner | Free Adv. EMP Blaster | -6/Factory | Scanalyzed Imp. Heavy Armor Plating | -6/Factory | Scanalyzed Robot Schematics ------------------ G-50 Soldier | -7/Data Miner | Free I-36 Angel | -7/Data Miner | Free B-48 Gladiator | -7/Data Miner | Free Y-54 Guardian | -7/Data Miner | Free R-10 Processor | -7/Data Miner | Free Fabricated ------------ I-36 Angel | x1 | -6/Factory | Authchip Alien Tech Used ----------------- None Achievements -------------- Z1$+NX3F=JRE3_ZNQR Challenges ------------ None Game ------ Seed ExoskeletonFluxStabilizer Manual? 0 Play Time 08:18:04 Cumulative 172.4 hours Start 2024.08.12 @ 14:06:54 End 2024.08.25 @ 16:30:13 Sessions 21 Manual Loads 0 Difficulty Rogue Special Mode None Game No. 28 Rogue 25 Adventurer 3 Explorer 0 Win Type - Total 7 Types 7/0/0/0/0/0/0/0/0 Lore% 37 Gallery% 69 Achievement% 68 Wizard Run 0 Options --------- Layout 0 ASCII 0 Keyboard 0 Movement Numpad Keybinds 0 Fullscreen 1 Font 18/SmallcapsGlow Map View 76x50 Zoom Use 0% Tactical HUD 1 Map Filters NONE Filters NONE Steam 1 RUN: cc563e82-f28f-4053-97b3-9786516be7b3